[Event "*** Titled Tuesday Blitz"]
[Site "Chess.com"]
[Date "2021.04.06"]
[Round "6"]
[White "albi1999"]
[Black "I_Enchev"]
[Result "1/2-1/2"]
[WhiteElo "2597"]
[BlackElo "2499"]
[TimeControl "180+1"]
[EndTime "11:09:55 PDT"]
[Termination "Game drawn by stalemate"]

1. d4 {[%clk 0:02:57.6]} 1... Nf6 {[%clk 0:02:59.2]} 2. c4 {[%clk 0:02:57.3]}
2... e6 {[%clk 0:02:59.2]} 3. Nf3 {[%clk 0:02:54.3]} 3... Bb4+ {[%clk
0:02:58.8]} 4. Bd2 {[%clk 0:02:47.9]} 4... Bxd2+ {[%clk 0:02:56.8]} 5. Qxd2
{[%clk 0:02:47.8]} 5... d5 {[%clk 0:02:57.2]} 6. g3 {[%clk 0:02:42.8]} 6... b6
{[%clk 0:02:52]} 7. cxd5 {[%clk 0:02:42.5]} 7... Nxd5 {[%clk 0:02:49.8]} 8. Bg2
{[%clk 0:02:42.5]} 8... Bb7 {[%clk 0:02:49.3]} 9. O-O {[%clk 0:02:43.1]} 9...
O-O {[%clk 0:02:48.6]} 10. Rd1 {[%clk 0:02:37.7]} 10... Nd7 {[%clk 0:02:47.8]}
11. Qc2 {[%clk 0:02:35.8]} 11... N5f6 {[%clk 0:02:43.6]} 12. Nc3 {[%clk
0:02:35.3]} 12... Qe7 {[%clk 0:02:41.4]} 13. e4 {[%clk 0:02:34.6]} 13... c5
{[%clk 0:02:33.1]} 14. d5 {[%clk 0:02:25.2]} 14... exd5 {[%clk 0:02:29.9]} 15.
exd5 {[%clk 0:02:26.1]} 15... Rfe8 {[%clk 0:02:22.7]} 16. d6 {[%clk 0:02:22.7]}
16... Qf8 {[%clk 0:02:20.7]} 17. Nb5 {[%clk 0:02:17.7]} 17... Red8 {[%clk
0:02:13.9]} 18. Nc7 {[%clk 0:02:12.6]} 18... Rac8 {[%clk 0:02:12.6]} 19. Qa4
{[%clk 0:02:11.2]} 19... a6 {[%clk 0:02:02.6]} 20. Nh4 {[%clk 0:02:03.2]} 20...
b5 {[%clk 0:01:58.9]} 21. Qa5 {[%clk 0:02:01]} 21... Bxg2 {[%clk 0:01:56.1]} 22.
Kxg2 {[%clk 0:02:01.9]} 22... Ne4 {[%clk 0:01:48.6]} 23. Nf5 {[%clk 0:01:57.1]}
23... Kh8 {[%clk 0:01:38.9]} 24. Qxa6 {[%clk 0:01:51.5]} 24... b4 {[%clk
0:01:29.4]} 25. Qc4 {[%clk 0:01:46.8]} 25... Ndf6 {[%clk 0:01:26.9]} 26. Nb5
{[%clk 0:01:38.4]} 26... g6 {[%clk 0:01:24]} 27. Ne7 {[%clk 0:01:32.1]} 27...
Rb8 {[%clk 0:01:23.8]} 28. f3 {[%clk 0:01:30.7]} 28... Rxb5 {[%clk 0:01:18.3]}
29. fxe4 {[%clk 0:01:27]} 29... Rb7 {[%clk 0:01:15]} 30. e5 {[%clk 0:01:25.4]}
30... Nd7 {[%clk 0:01:10.2]} 31. Qd5 {[%clk 0:01:19.5]} 31... Rb6 {[%clk
0:01:06.4]} 32. Rf1 {[%clk 0:01:18.5]} 32... Kg7 {[%clk 0:01:03.2]} 33. Rf2
{[%clk 0:01:13]} 33... f6 {[%clk 0:00:50.2]} 34. exf6+ {[%clk 0:00:19.9]} 34...
Nxf6 {[%clk 0:00:49.6]} 35. Qe5 {[%clk 0:00:19.8]} 35... Rbxd6 {[%clk
0:00:41.8]} 36. Raf1 {[%clk 0:00:19.1]} 36... Rd2 {[%clk 0:00:30.9]} 37. Qxc5
{[%clk 0:00:18.9]} 37... Rxf2+ {[%clk 0:00:29.8]} 38. Rxf2 {[%clk 0:00:19.8]}
38... Re8 {[%clk 0:00:28.2]} 39. Re2 {[%clk 0:00:18.3]} 39... Qf7 {[%clk
0:00:21.6]} 40. Qxb4 {[%clk 0:00:14.8]} 40... Qxa2 {[%clk 0:00:20.8]} 41. Qb7
{[%clk 0:00:12.8]} 41... Qf7 {[%clk 0:00:19.9]} 42. b4 {[%clk 0:00:12]} 42...
Ng8 {[%clk 0:00:17]} 43. Nf5+ {[%clk 0:00:07.8]} 43... gxf5 {[%clk 0:00:16.4]}
44. Qxf7+ {[%clk 0:00:08]} 44... Kxf7 {[%clk 0:00:17.3]} 45. Rxe8 {[%clk
0:00:08.6]} 45... Kxe8 {[%clk 0:00:17.8]} 46. Kf3 {[%clk 0:00:09]} 46... Nf6
{[%clk 0:00:15.7]} 47. Kf4 {[%clk 0:00:09.4]} 47... Nd5+ {[%clk 0:00:15.8]} 48.
Kxf5 {[%clk 0:00:09.9]} 48... Nxb4 {[%clk 0:00:16.4]} 49. Kg5 {[%clk 0:00:07.9]}
49... Kf7 {[%clk 0:00:16.5]} 50. Kh6 {[%clk 0:00:08.8]} 50... Kg8 {[%clk
0:00:16.8]} 51. g4 {[%clk 0:00:09.7]} 51... Nd5 {[%clk 0:00:17]} 52. h4 {[%clk
0:00:09.6]} 52... Ne7 {[%clk 0:00:13.7]} 53. h5 {[%clk 0:00:08.3]} 53... Kh8
{[%clk 0:00:13.5]} 54. Kg5 {[%clk 0:00:08.4]} 54... Kg7 {[%clk 0:00:13.6]} 55.
Kf4 {[%clk 0:00:08.1]} 55... Kf6 {[%clk 0:00:13.4]} 56. g5+ {[%clk 0:00:08.4]}
56... Kg7 {[%clk 0:00:13.6]} 57. Ke5 {[%clk 0:00:08]} 57... Nc6+ {[%clk
0:00:12.5]} 58. Kf5 {[%clk 0:00:07.5]} 58... Nd4+ {[%clk 0:00:12.5]} 59. Ke4
{[%clk 0:00:06.6]} 59... Nb5 {[%clk 0:00:12]} 60. Ke5 {[%clk 0:00:06.5]} 60...
Nc7 {[%clk 0:00:12]} 61. Kf5 {[%clk 0:00:06.7]} 61... Nd5 {[%clk 0:00:10.8]} 62.
Ke5 {[%clk 0:00:06.9]} 62... Ne7 {[%clk 0:00:10.9]} 63. Ke6 {[%clk 0:00:06.7]}
63... Nc6 {[%clk 0:00:09.8]} 64. Kf5 {[%clk 0:00:05.9]} 64... Nd4+ {[%clk
0:00:09.9]} 65. Ke4 {[%clk 0:00:06.1]} 65... Ne2 {[%clk 0:00:10]} 66. Kf3 {[%clk
0:00:05.9]} 66... Nc3 {[%clk 0:00:10]} 67. Kf4 {[%clk 0:00:06.2]} 67... Kf8
{[%clk 0:00:09.7]} 68. Kf5 {[%clk 0:00:06.5]} 68... Nd5 {[%clk 0:00:09.9]} 69.
Ke5 {[%clk 0:00:06.5]} 69... Ne3 {[%clk 0:00:09.8]} 70. Kf6 {[%clk 0:00:06]}
70... Nc4 {[%clk 0:00:09.4]} 71. g6 {[%clk 0:00:06.2]} 71... h6 {[%clk
0:00:09.6]} 72. g7+ {[%clk 0:00:06.7]} 72... Kg8 {[%clk 0:00:09.9]} 73. Kg6
{[%clk 0:00:07.6]} 73... Ne5+ {[%clk 0:00:09.9]} 74. Kxh6 {[%clk 0:00:08.5]}
74... Ng4+ {[%clk 0:00:09.4]} 75. Kg6 {[%clk 0:00:09]} 75... Ne5+ {[%clk
0:00:09.6]} 76. Kf6 {[%clk 0:00:09.3]} 76... Ng4+ {[%clk 0:00:09.7]} 77. Kg5
{[%clk 0:00:09.2]} 77... Kxg7 {[%clk 0:00:09.7]} 78. Kxg4 {[%clk 0:00:09.7]}
78... Kh7 {[%clk 0:00:10.5]} 79. Kh4 {[%clk 0:00:10.6]} 79... Kh8 {[%clk
0:00:11.2]} 80. Kg5 {[%clk 0:00:11.5]} 80... Kh7 {[%clk 0:00:12.1]} 81. h6
{[%clk 0:00:12.4]} 81... Kh8 {[%clk 0:00:13]} 82. Kg6 {[%clk 0:00:13.2]} 82...
Kg8 {[%clk 0:00:13.2]} 83. h7+ {[%clk 0:00:14.1]} 83... Kh8 {[%clk 0:00:14.1]}
84. Kh6 {[%clk 0:00:15]} 1/2-1/2

[Event "*** Titled Tuesday Blitz"]
[Site "Chess.com"]
[Date "2021.04.06"]
[Round "6"]
[White "EvgenyT"]
[Black "Gusarov91"]
[Result "1-0"]
[WhiteElo "2923"]
[BlackElo "2626"]
[TimeControl "180+1"]
[EndTime "11:09:59 PDT"]
[Termination "EvgenyT won by checkmate"]

1. e4 {[%clk 0:03:00.9]} 1... c6 {[%clk 0:03:00]} 2. Nf3 {[%clk 0:03:00.5]} 2...
d5 {[%clk 0:03:00.3]} 3. d3 {[%clk 0:03:00.8]} 3... Bg4 {[%clk 0:02:59.5]} 4. h3
{[%clk 0:02:58.2]} 4... Bh5 {[%clk 0:02:53.5]} 5. Nbd2 {[%clk 0:02:55.2]} 5...
Nd7 {[%clk 0:02:50.4]} 6. Qe2 {[%clk 0:02:47.4]} 6... e6 {[%clk 0:02:48.2]} 7.
g4 {[%clk 0:02:46.8]} 7... Bg6 {[%clk 0:02:48.2]} 8. Bg2 {[%clk 0:02:47.3]} 8...
Bc5 {[%clk 0:02:43.7]} 9. Nb3 {[%clk 0:02:41.5]} 9... Bd6 {[%clk 0:02:41.5]} 10.
Bd2 {[%clk 0:02:27.6]} 10... Ne7 {[%clk 0:02:40.1]} 11. Bc3 {[%clk 0:02:24.2]}
11... Rg8 {[%clk 0:02:31.3]} 12. h4 {[%clk 0:02:10.9]} 12... h5 {[%clk
0:02:28.8]} 13. Ng5 {[%clk 0:02:10.7]} 13... hxg4 {[%clk 0:02:25.3]} 14. Qxg4
{[%clk 0:02:11.1]} 14... Nf6 {[%clk 0:02:23.9]} 15. Qe2 {[%clk 0:02:10.4]} 15...
Bh5 {[%clk 0:02:23.4]} 16. Bf3 {[%clk 0:02:09.2]} 16... Bxf3 {[%clk 0:02:12]}
17. Qxf3 {[%clk 0:02:08.9]} 17... Ng6 {[%clk 0:02:11.8]} 18. O-O-O {[%clk
0:02:06.1]} 18... Be5 {[%clk 0:02:00.1]} 19. Bxe5 {[%clk 0:02:01.8]} 19... Nxe5
{[%clk 0:01:59.8]} 20. Qg3 {[%clk 0:02:02.3]} 20... Qb8 {[%clk 0:01:54.8]} 21.
h5 {[%clk 0:02:00.4]} 21... Neg4 {[%clk 0:01:39.6]} 22. f4 {[%clk 0:01:58.8]}
22... Nh6 {[%clk 0:01:37.2]} 23. Nd4 {[%clk 0:01:51.2]} 23... Qc7 {[%clk
0:01:26.6]} 24. e5 {[%clk 0:01:46.2]} 24... Nd7 {[%clk 0:01:26.2]} 25. Ngxe6
{[%clk 0:01:45.5]} 25... Qb6 {[%clk 0:01:13.6]} 26. f5 {[%clk 0:01:05.5]} 26...
c5 {[%clk 0:01:08.7]} 27. Nb5 {[%clk 0:01:04.8]} 27... fxe6 {[%clk 0:01:01.4]}
28. Nd6+ {[%clk 0:01:02.2]} 28... Kd8 {[%clk 0:00:56.7]} 29. fxe6 {[%clk
0:01:02.1]} 29... Nf8 {[%clk 0:00:38.7]} 30. Qg5+ {[%clk 0:00:59.3]} 30... Kc7
{[%clk 0:00:39.2]} 31. Rhf1 {[%clk 0:00:56.9]} 31... Kc6 {[%clk 0:00:32.8]} 32.
e7 {[%clk 0:00:53]} 32... Ne6 {[%clk 0:00:31.9]} 33. Qg6 {[%clk 0:00:53.5]}
33... Kd7 {[%clk 0:00:32]} 34. Rf3 {[%clk 0:00:34.5]} 34... Rae8 {[%clk
0:00:28.9]} 35. Nxe8 {[%clk 0:00:30.9]} 35... Rxe8 {[%clk 0:00:29.1]} 36. Rdf1
{[%clk 0:00:31.3]} 36... Rxe7 {[%clk 0:00:28.7]} 37. c3 {[%clk 0:00:30.3]} 37...
d4 {[%clk 0:00:27.7]} 38. c4 {[%clk 0:00:29.9]} 38... Qa5 {[%clk 0:00:26.1]} 39.
Qe4 {[%clk 0:00:29]} 39... Kc7 {[%clk 0:00:23.8]} 40. a3 {[%clk 0:00:28.2]}
40... Ng5 {[%clk 0:00:23.6]} 41. Qd5 {[%clk 0:00:26.5]} 41... Qb6 {[%clk
0:00:22]} 42. Rf8 {[%clk 0:00:24.3]} 42... Ne6 {[%clk 0:00:19.9]} 43. Ra8 {[%clk
0:00:19.3]} 43... Qc6 {[%clk 0:00:19.6]} 44. Kb1 {[%clk 0:00:16.8]} 44... a6
{[%clk 0:00:17.8]} 45. Ka2 {[%clk 0:00:16.1]} 45... Kb6 {[%clk 0:00:18.1]} 46.
Rg1 {[%clk 0:00:15.6]} 46... Nc7 {[%clk 0:00:18.1]} 47. Qxc6+ {[%clk 0:00:12.3]}
47... Kxc6 {[%clk 0:00:18.6]} 48. Rd8 {[%clk 0:00:11.5]} 48... Ne6 {[%clk
0:00:17.7]} 49. Rg6 {[%clk 0:00:10.5]} 49... Kc7 {[%clk 0:00:16.4]} 50. Rd5
{[%clk 0:00:10.8]} 50... Nf5 {[%clk 0:00:13.6]} 51. b4 {[%clk 0:00:10.5]} 51...
Ne3 {[%clk 0:00:13.6]} 52. Rd6 {[%clk 0:00:10.4]} 52... Nf4 {[%clk 0:00:13.7]}
53. Rg5 {[%clk 0:00:08.9]} 53... Nxd3 {[%clk 0:00:13.9]} 54. bxc5 {[%clk
0:00:07.8]} 54... Nxe5 {[%clk 0:00:10]} 55. Rxd4 {[%clk 0:00:07.2]} 55... N3xc4
{[%clk 0:00:09.8]} 56. Re4 {[%clk 0:00:03.6]} 56... Kc6 {[%clk 0:00:08.7]} 57.
Re2 {[%clk 0:00:03.7]} 57... Kd5 {[%clk 0:00:09.1]} 58. Reg2 {[%clk 0:00:03.8]}
58... Kxc5 {[%clk 0:00:09]} 59. Rxg7 {[%clk 0:00:03.9]} 59... Re6 {[%clk
0:00:09.7]} 60. Rxb7 {[%clk 0:00:02.7]} 60... Rh6 {[%clk 0:00:09.7]} 61. Rh2
{[%clk 0:00:02.9]} 61... Ne3 {[%clk 0:00:08.8]} 62. Rc7+ {[%clk 0:00:03]} 62...
Kd4 {[%clk 0:00:08.6]} 63. Rc1 {[%clk 0:00:03.9]} 63... Nd3 {[%clk 0:00:08.4]}
64. Rh4+ {[%clk 0:00:04.3]} 64... Kd5 {[%clk 0:00:07.7]} 65. Rc3 {[%clk
0:00:04.7]} 65... Ne5 {[%clk 0:00:04]} 66. Rxe3 {[%clk 0:00:04.7]} 66... Rb6
{[%clk 0:00:03.5]} 67. Re1 {[%clk 0:00:04.1]} 67... Nc4 {[%clk 0:00:03.1]} 68.
Rd1+ {[%clk 0:00:04.2]} 68... Kc5 {[%clk 0:00:03.6]} 69. Rc1 {[%clk 0:00:04.6]}
69... Rb2+ {[%clk 0:00:04.2]} 70. Ka1 {[%clk 0:00:03.7]} 70... Rg2 {[%clk
0:00:05.1]} 71. Rhxc4+ {[%clk 0:00:04]} 71... Kb5 {[%clk 0:00:06]} 72. Rc5+
{[%clk 0:00:04.9]} 72... Kb6 {[%clk 0:00:06.4]} 73. R5c4 {[%clk 0:00:04.8]}
73... Kb5 {[%clk 0:00:06.3]} 74. Rb4+ {[%clk 0:00:05.7]} 74... Ka5 {[%clk
0:00:05.5]} 75. Rc5# {[%clk 0:00:06.1]} 1-0

[Event "*** Titled Tuesday Blitz"]
[Site "Chess.com"]
[Date "2021.04.06"]
[Round "6"]
[White "KacperPolOK"]
[Black "dmjjmd"]
[Result "1/2-1/2"]
[WhiteElo "2406"]
[BlackElo "2252"]
[TimeControl "180+1"]
[EndTime "11:10:00 PDT"]
[Termination "Game drawn by stalemate"]

1. e4 {[%clk 0:02:59.9]} 1... e5 {[%clk 0:02:58]} 2. Nf3 {[%clk 0:02:59.2]} 2...
Nc6 {[%clk 0:02:58]} 3. Bc4 {[%clk 0:02:59.7]} 3... Bc5 {[%clk 0:02:57.3]} 4.
O-O {[%clk 0:02:59.7]} 4... Nf6 {[%clk 0:02:57.5]} 5. d4 {[%clk 0:02:58.1]} 5...
Bxd4 {[%clk 0:02:57.7]} 6. Nxd4 {[%clk 0:02:57.7]} 6... Nxd4 {[%clk 0:02:58.4]}
7. Bg5 {[%clk 0:02:58.4]} 7... Ne6 {[%clk 0:02:57.2]} 8. Bxe6 {[%clk 0:02:49.6]}
8... dxe6 {[%clk 0:02:58.1]} 9. Qxd8+ {[%clk 0:02:48.9]} 9... Kxd8 {[%clk
0:02:59]} 10. f4 {[%clk 0:02:49.2]} 10... exf4 {[%clk 0:02:59.9]} 11. e5 {[%clk
0:02:44.1]} 11... h6 {[%clk 0:03:00]} 12. Bxf6+ {[%clk 0:02:39.4]} 12... gxf6
{[%clk 0:02:59.9]} 13. Rxf4 {[%clk 0:02:37.5]} 13... f5 {[%clk 0:02:52.7]} 14.
Kf2 {[%clk 0:02:23.9]} 14... Ke7 {[%clk 0:02:52.3]} 15. Nd2 {[%clk 0:02:16.9]}
15... Bd7 {[%clk 0:02:51.9]} 16. Rg1 {[%clk 0:02:14.3]} 16... Rhg8 {[%clk
0:02:49.1]} 17. h3 {[%clk 0:02:04.7]} 17... Rg6 {[%clk 0:02:25.3]} 18. g3 {[%clk
0:01:59.2]} 18... Bc6 {[%clk 0:02:22.5]} 19. b3 {[%clk 0:01:47.1]} 19... Rd8
{[%clk 0:02:22.1]} 20. Ke3 {[%clk 0:01:46]} 20... Rdg8 {[%clk 0:02:18.1]} 21.
Kf2 {[%clk 0:01:44.4]} 21... Rd8 {[%clk 0:02:17.3]} 22. Ke3 {[%clk 0:01:44.2]}
22... Rd5 {[%clk 0:02:17.6]} 23. Nc4 {[%clk 0:01:40]} 23... b5 {[%clk
0:02:10.4]} 24. Na5 {[%clk 0:01:40]} 24... Rxe5+ {[%clk 0:02:10.3]} 25. Kd4
{[%clk 0:01:39.2]} 25... Re4+ {[%clk 0:02:07.7]} 26. Rxe4 {[%clk 0:01:38.1]}
26... Bxe4 {[%clk 0:02:07.2]} 27. Kc5 {[%clk 0:01:35.5]} 27... f4 {[%clk
0:02:03.7]} 28. g4 {[%clk 0:01:32.5]} 28... h5 {[%clk 0:01:44.5]} 29. Kxb5
{[%clk 0:01:29]} 29... hxg4 {[%clk 0:01:43.6]} 30. hxg4 {[%clk 0:01:29.6]} 30...
f5 {[%clk 0:01:43.7]} 31. g5 {[%clk 0:01:28.1]} 31... f3 {[%clk 0:01:40.1]} 32.
Nc4 {[%clk 0:01:26.7]} 32... f2 {[%clk 0:01:32.8]} 33. Rf1 {[%clk 0:01:26.6]}
33... Rxg5 {[%clk 0:01:32.6]} 34. Rxf2 {[%clk 0:01:27.2]} 34... Bb7 {[%clk
0:01:29.3]} 35. a4 {[%clk 0:01:22.3]} 35... f4+ {[%clk 0:01:27.1]} 36. Kb4
{[%clk 0:01:20.7]} 36... f3 {[%clk 0:01:23.5]} 37. Ne3 {[%clk 0:01:09.3]} 37...
Re5 {[%clk 0:01:23.1]} 38. Ng4 {[%clk 0:01:06.2]} 38... Re2 {[%clk 0:01:21.6]}
39. Kc3 {[%clk 0:01:03.5]} 39... Re4 {[%clk 0:01:08.3]} 40. Nh2 {[%clk
0:00:58.2]} 40... Rf4 {[%clk 0:01:08.4]} 41. Kd3 {[%clk 0:00:55]} 41... e5
{[%clk 0:00:28.6]} 42. Ke3 {[%clk 0:00:55.3]} 42... Rh4 {[%clk 0:00:22.9]} 43.
Nxf3 {[%clk 0:00:51.6]} 43... Rh3 {[%clk 0:00:21.8]} 44. Ke2 {[%clk 0:00:51.8]}
44... e4 {[%clk 0:00:18.3]} 45. Nd4 {[%clk 0:00:46.7]} 45... Bc8 {[%clk
0:00:18.5]} 46. Rg2 {[%clk 0:00:43.8]} 46... Kf6 {[%clk 0:00:18.1]} 47. b4
{[%clk 0:00:39]} 47... a6 {[%clk 0:00:15.1]} 48. a5 {[%clk 0:00:29.5]} 48... Bd7
{[%clk 0:00:12.9]} 49. c4 {[%clk 0:00:25.1]} 49... Ke5 {[%clk 0:00:12]} 50. Nc2
{[%clk 0:00:20.8]} 50... Be6 {[%clk 0:00:09.8]} 51. Ne3 {[%clk 0:00:20.4]} 51...
Kd4 {[%clk 0:00:09.3]} 52. Ng4 {[%clk 0:00:11.3]} 52... Bxc4+ {[%clk 0:00:04.1]}
53. Kd2 {[%clk 0:00:11.7]} 53... Bb5 {[%clk 0:00:02.9]} 54. Nf2 {[%clk
0:00:11.6]} 54... e3+ {[%clk 0:00:02.7]} 55. Kc2 {[%clk 0:00:11.4]} 55... exf2
{[%clk 0:00:03.6]} 56. Rxf2 {[%clk 0:00:12.3]} 56... Rc3+ {[%clk 0:00:03.1]} 57.
Kb2 {[%clk 0:00:12.3]} 57... Re3 {[%clk 0:00:04]} 58. Rf4+ {[%clk 0:00:11.8]}
58... Re4 {[%clk 0:00:04]} 59. Rf7 {[%clk 0:00:12.4]} 59... c6 {[%clk
0:00:04.3]} 60. Rf5 {[%clk 0:00:12.5]} 60... Kc4 {[%clk 0:00:04.5]} 61. Ka3
{[%clk 0:00:11.5]} 61... Re3+ {[%clk 0:00:04.4]} 62. Kb2 {[%clk 0:00:06.8]}
62... Kxb4 {[%clk 0:00:05.3]} 63. Rf4+ {[%clk 0:00:07.1]} 63... Kxa5 {[%clk
0:00:05.6]} 64. Rd4 {[%clk 0:00:06.5]} 64... c5 {[%clk 0:00:05.4]} 65. Rd2
{[%clk 0:00:06.7]} 65... c4 {[%clk 0:00:05.6]} 66. Rh2 {[%clk 0:00:04.7]} 66...
Kb4 {[%clk 0:00:05.9]} 67. Ka2 {[%clk 0:00:03.6]} 67... a5 {[%clk 0:00:06.5]}
68. Rh1 {[%clk 0:00:03.7]} 68... a4 {[%clk 0:00:07]} 69. Ka1 {[%clk 0:00:03.7]}
69... Rb3 {[%clk 0:00:07.2]} 70. Rc1 {[%clk 0:00:03.6]} 70... c3 {[%clk
0:00:07.3]} 71. Rc2 {[%clk 0:00:03.4]} 71... Bc4 {[%clk 0:00:07.6]} 72. Rc1
{[%clk 0:00:01.2]} 72... a3 {[%clk 0:00:07.9]} 73. Rc2 {[%clk 0:00:01.5]} 73...
Rb2 {[%clk 0:00:08.3]} 74. Rc1 {[%clk 0:00:01.7]} 74... Kb3 {[%clk 0:00:07.4]}
75. Rxc3+ {[%clk 0:00:02.1]} 75... Kb4 {[%clk 0:00:05.6]} 76. Rxc4+ {[%clk
0:00:02.5]} 76... Kxc4 {[%clk 0:00:05.5]} 1/2-1/2

[Event "*** Titled Tuesday Blitz"]
[Site "Chess.com"]
[Date "2021.04.06"]
[Round "6"]
[White "GM_Crest"]
[Black "BrandonJacobson"]
[Result "1-0"]
[WhiteElo "2713"]
[BlackElo "2866"]
[TimeControl "180+1"]
[EndTime "11:10:05 PDT"]
[Termination "GM_Crest won on time"]

1. d4 {[%clk 0:03:00.9]} 1... Nf6 {[%clk 0:02:59.3]} 2. c4 {[%clk 0:03:01.1]}
2... e5 {[%clk 0:02:59.6]} 3. dxe5 {[%clk 0:03:00.3]} 3... Ng4 {[%clk 0:03:00]}
4. e3 {[%clk 0:03:00.5]} 4... Nxe5 {[%clk 0:03:00.1]} 5. Nh3 {[%clk 0:03:00.8]}
5... d5 {[%clk 0:02:59.9]} 6. Qxd5 {[%clk 0:02:59.3]} 6... Qf6 {[%clk
0:02:56.4]} 7. Nf4 {[%clk 0:02:59.3]} 7... c6 {[%clk 0:02:47.2]} 8. Qd4 {[%clk
0:02:59.2]} 8... Na6 {[%clk 0:02:46.2]} 9. Be2 {[%clk 0:02:43.5]} 9... Bc5
{[%clk 0:02:15.7]} 10. Qd1 {[%clk 0:02:21.6]} 10... Bf5 {[%clk 0:02:13.1]} 11.
Nc3 {[%clk 0:02:18.1]} 11... Nb4 {[%clk 0:01:54.9]} 12. e4 {[%clk 0:02:07.5]}
12... Rd8 {[%clk 0:01:38.9]} 13. Qb3 {[%clk 0:02:07]} 13... Bg4 {[%clk
0:01:06.4]} 14. O-O {[%clk 0:01:54.1]} 14... O-O {[%clk 0:01:00.6]} 15. Be3
{[%clk 0:01:35.6]} 15... Bxe3 {[%clk 0:00:57.7]} 16. fxe3 {[%clk 0:01:35.8]}
16... Qe7 {[%clk 0:00:54.5]} 17. Bf3 {[%clk 0:01:24.7]} 17... Nbd3 {[%clk
0:00:47]} 18. Kh1 {[%clk 0:01:13.7]} 18... Nc5 {[%clk 0:00:36.1]} 19. Qb4 {[%clk
0:01:07.6]} 19... b6 {[%clk 0:00:35.7]} 20. b3 {[%clk 0:01:01.3]} 20... Qh4
{[%clk 0:00:33.6]} 21. Nce2 {[%clk 0:00:52]} 21... Rd6 {[%clk 0:00:24.1]} 22.
Qe1 {[%clk 0:00:47.2]} 22... Qe7 {[%clk 0:00:20.9]} 23. Qg3 {[%clk 0:00:45.7]}
23... Bc8 {[%clk 0:00:18.9]} 24. Nd4 {[%clk 0:00:45.7]} 24... Rfd8 {[%clk
0:00:17.1]} 25. Nf5 {[%clk 0:00:42.7]} 25... Bxf5 {[%clk 0:00:16.9]} 26. exf5
{[%clk 0:00:43.2]} 26... f6 {[%clk 0:00:16.2]} 27. b4 {[%clk 0:00:41.4]} 27...
Ncd3 {[%clk 0:00:14.4]} 28. Ne6 {[%clk 0:00:41.7]} 28... Re8 {[%clk 0:00:11.3]}
29. c5 {[%clk 0:00:39.3]} 29... bxc5 {[%clk 0:00:11.5]} 30. bxc5 {[%clk
0:00:39.7]} 30... Rd7 {[%clk 0:00:11.9]} 31. Rad1 {[%clk 0:00:27]} 31... Nxc5
{[%clk 0:00:11.9]} 32. Rxd7 {[%clk 0:00:22.4]} 32... Ncxd7 {[%clk 0:00:12.8]}
33. h3 {[%clk 0:00:22.5]} 33... Kh8 {[%clk 0:00:12]} 34. Rd1 {[%clk 0:00:21.3]}
34... c5 {[%clk 0:00:12]} 35. Qf4 {[%clk 0:00:20.4]} 35... c4 {[%clk 0:00:12.3]}
36. Qd4 {[%clk 0:00:19]} 36... Nb6 {[%clk 0:00:12.5]} 37. Rc1 {[%clk 0:00:14.3]}
37... Rc8 {[%clk 0:00:12.6]} 38. Be4 {[%clk 0:00:13.7]} 38... Qd7 {[%clk
0:00:12.3]} 39. Kh2 {[%clk 0:00:13.4]} 39... Qe7 {[%clk 0:00:10.4]} 40. Rc2
{[%clk 0:00:10.9]} 40... Nf7 {[%clk 0:00:10.8]} 41. Qb2 {[%clk 0:00:09.5]} 41...
Qd6+ {[%clk 0:00:11.2]} 42. Kg1 {[%clk 0:00:08.9]} 42... Ne5 {[%clk 0:00:11.9]}
43. Qd4 {[%clk 0:00:08.3]} 43... Qe7 {[%clk 0:00:09.5]} 44. Kh1 {[%clk
0:00:08.7]} 44... h6 {[%clk 0:00:09.5]} 45. Kg1 {[%clk 0:00:08.3]} 45... Kh7
{[%clk 0:00:10]} 46. Kh1 {[%clk 0:00:08.5]} 46... Qa3 {[%clk 0:00:09]} 47. Kg1
{[%clk 0:00:07.6]} 47... c3 {[%clk 0:00:09.3]} 48. Bd5 {[%clk 0:00:05.7]} 48...
Qa4 {[%clk 0:00:08.4]} 49. Qxa4 {[%clk 0:00:05.1]} 49... Nxa4 {[%clk 0:00:09.3]}
50. Bb3 {[%clk 0:00:05.4]} 50... Nb6 {[%clk 0:00:09.8]} 51. Kf1 {[%clk
0:00:05.6]} 51... Nd3 {[%clk 0:00:09.4]} 52. Ke2 {[%clk 0:00:04.7]} 52... Nb4
{[%clk 0:00:09.2]} 53. Rc1 {[%clk 0:00:05]} 53... a5 {[%clk 0:00:09.9]} 54. a3
{[%clk 0:00:05.4]} 54... N4d5 {[%clk 0:00:10.4]} 55. Nd4 {[%clk 0:00:05.3]}
55... Ne7 {[%clk 0:00:08.7]} 56. Kd3 {[%clk 0:00:05.2]} 56... a4 {[%clk
0:00:08.2]} 57. Be6 {[%clk 0:00:04.9]} 57... Rd8 {[%clk 0:00:06.5]} 58. Rxc3
{[%clk 0:00:05.5]} 58... Nbd5 {[%clk 0:00:07.1]} 59. Rc5 {[%clk 0:00:05.5]}
59... Nb6 {[%clk 0:00:04.9]} 60. g4 {[%clk 0:00:05.4]} 60... Ned5 {[%clk
0:00:04.8]} 61. Rb5 {[%clk 0:00:04.2]} 61... Rd6 {[%clk 0:00:03.4]} 62. Bxd5
{[%clk 0:00:03.7]} 62... Nxd5 {[%clk 0:00:04.3]} 63. Ra5 {[%clk 0:00:04.2]}
63... Nb6 {[%clk 0:00:04.2]} 64. Ra6 {[%clk 0:00:04.6]} 64... Kg8 {[%clk
0:00:03.8]} 65. Ke4 {[%clk 0:00:05]} 65... Kf7 {[%clk 0:00:04.2]} 66. Nb5 {[%clk
0:00:05]} 66... Rc6 {[%clk 0:00:04.1]} 67. Nd4 {[%clk 0:00:05.3]} 67... Rd6
{[%clk 0:00:04.6]} 68. h4 {[%clk 0:00:05.8]} 68... Nc4 {[%clk 0:00:04.2]} 69.
Rxd6 {[%clk 0:00:05.2]} 69... Nxd6+ {[%clk 0:00:05.1]} 70. Kd5 {[%clk
0:00:05.8]} 70... Nc8 {[%clk 0:00:05.5]} 71. Kc5 {[%clk 0:00:05.3]} 71... Ke7
{[%clk 0:00:05.6]} 72. e4 {[%clk 0:00:05.9]} 72... Nd6 {[%clk 0:00:06]} 73. Nc6+
{[%clk 0:00:05.9]} 73... Kd7 {[%clk 0:00:06.2]} 74. e5 {[%clk 0:00:05.6]} 74...
Ne4+ {[%clk 0:00:05.7]} 75. Kd5 {[%clk 0:00:05.1]} 75... Nc3+ {[%clk 0:00:06.1]}
76. Kc4 {[%clk 0:00:05.4]} 76... Kxc6 {[%clk 0:00:04]} 77. exf6 {[%clk 0:00:04]}
77... Ne4 {[%clk 0:00:02.7]} 78. fxg7 {[%clk 0:00:03.1]} 78... Nf6 {[%clk
0:00:02.7]} 79. g5 {[%clk 0:00:03.6]} 79... hxg5 {[%clk 0:00:02.7]} 80. hxg5
{[%clk 0:00:04.1]} 80... Ng8 {[%clk 0:00:01.8]} 81. f6 {[%clk 0:00:04.3]} 1-0